[Event "Marienbad A2-GM 2024"]
[Site "Marianske Lazne"]
[Date "2024.01.18"]
[Round "7.10"]
[White "Besou, Hussain"]
[Black "Plat, Vojtech"]
[Result "1/2-1/2"]
[ECO "B06"]
[WhiteElo "2277"]
[BlackElo "2516"]
[Annotator "TA"]
[PlyCount "80"]
[EventDate "2024.01.10"]
[EventType "tourn"]
[EventCountry "CZE"]
[SourceTitle "playchess.com"]
[Source "ChessBase"]
[SourceQuality "1"]
[TimeControl "40/5400+30:1800+30"]

{[%evp 10,80,41,41,36,45,45,41,50,53,50,56,43,19,21,37,22,12,26,33,31,14,17,5,36,6,34,25,13,10,127,112,149,131,160,91,92,92,85,78,86,79,82,84,75,66,76,43,43,40,48,28,37,29,46,50,56,54,66,52,53,52,53,49,49,50,56,8,8,8,8,0,0]} 1. e4 {[%emt 0:00:02]} g6 {[%emt 0:00:06]} 2. d4 {[%emt 0:00:07]} Bg7 {[%emt 0:00:05]} 3. Nc3 {[%emt 0:00:12]} d5 {[%emt 0:00:05]} 4. exd5 {[%emt 0:02:15]} Nf6 {[%emt 0:00:04]} 5. Bc4 {[%emt 0:00:55]} Nbd7 {[%emt 0:00:03]} 6. Nf3 {[%emt 0:00:45]} O-O {[%emt 0:00:34] B06: Modern Defence.} 7. O-O {[%emt 0:00:50]} Nb6 {[%emt 0:00:07][%csl LRc4,LRd5]} 8. Bb3 {[%emt 0:00:04]} a5 {[%emt 0:00:21][%cal Oa5a4] White is slightly better.} 9. a4 {[%emt 0:00:14]} Nbxd5 {[%emt 0:00:09]} 10. Nxd5 {[%emt 0:00:11]} Nxd5 {[%emt 0:00:03]} 11. h3 {[%emt 0:00:14]} b6 {[%emt 0:02:12]} 12. Re1 {[%emt 0:01:53]} Bb7 {[%emt 0:00:11]} 13. c3 {[%emt 0:07:55]} Qd6 {[%emt 0:00:41]} 14. Bg5 {[%emt 0:03:13]} e6 {[%emt 0:05:28]} 15. Qd2 {[%emt 0:09:34] [#]} c5 $146 {[%emt 0:00:35]} ({Predecessor:} 15... Rfe8 16. Rad1 f6 17. Bh4 Rad8 18. Bg3 Qd7 19. c4 Nb4 20. Qf4 Bxf3 21. Qxf3 f5 {½-½ Matko,O (2305)-Dizdarevic,E (2463) Bosnjaci op 22nd 2017 (5)}) 16. Rad1 {[%emt 0:01:03]} Rfe8 {[%emt 0:01:01]} 17. dxc5 {[%emt 0:09:06]} Qxc5 {[%emt 0:00:09]} 18. Nd4 {[%emt 0:01:21]} Nf6 {[%emt 0:02:59]} 19. Be3 {[%emt 0:02:29][%cal Od4e6]} Qh5 {[%emt 0:07:08] [#]} (19... Rad8 $11) 20. Nb5 $1 $16 {[%emt 0:05:56] Threatens to win with Nc7.} Rab8 {[%emt 0:04:36]} 21. Bf4 {[%emt 0:05:52]} ({Worse is} 21. Bxb6 Bxg2 22. Kxg2 Rxb6 $11) 21... Ne4 {[%emt 0:08:00]} 22. Rxe4 {[%emt 0:05:47]} (22. Qc2 $142 Nc5 23. Bc4 (23. Bxb8 Rxb8 24. Nd6 Ba8 $14)) 22... Bxe4 {[%emt 0:00:01]} 23. Bxb8 {[%emt 0:00:07]} Rxb8 {[%emt 0:00:03] [#]} 24. Qf4 $1 {[%emt 0:00:06][%csl LRb8,LRe4]} Qe5 {[%emt 0:00:03]} 25. Qxe5 {[%emt 0:00:11]} Bxe5 {[%emt 0:00:03] A strong pair of Bishops.} 26. Re1 {[%emt 0:00:11]} f5 {[%emt 0:00:02]} 27. Bxe6+ {[%emt 0:02:50]} Kg7 {[%emt 0:06:30]} 28. Rd1 {[%emt 0:05:50] Inhibits Rd8.} Kf6 {[%emt 0:04:52]} 29. Bb3 {[%emt 0:00:16]} Bc6 {[%emt 0:00:06]} 30. Bc4 {[%emt 0:05:48]} g5 {[%emt 0:02:36]} 31. Be2 {[%emt 0:02:40]} Rg8 {[%emt 0:02:44]} 32. Bf3 {[%emt 0:02:26]} Bxf3 {[%emt 0:02:47]} 33. gxf3 $14 {[%emt 0:00:04][%mdl 4096] Endgame KRB-KRN} g4 {[%emt 0:00:04]} 34. fxg4 {[%emt 0:02:31]} fxg4 {[%emt 0:00:14]} 35. Kg2 {[%emt 0:00:06]} gxh3+ {[%emt 0:01:20]} 36. Kxh3 {[%emt 0:00:06]} h5 {[%emt 0:01:48]} 37. Rd7 {[%emt 0:01:39]} Rg4 {[%emt 0:00:15]} 38. Rb7 {[%emt 0:04:09]} (38. Nd4 $14) 38... Rxa4 $11 {[%emt 0:00:08] The position is equal.} 39. Rxb6+ {[%emt 0:00:06]} Kg5 {[%emt 0:00:09]} 40. Nd4 {[%emt 0:03:58]} Bxd4 {White really could win this.   Weighted Error Value: White=0.10 (very precise) /Black=0.14 (very precise)} 1/2-1/2

[Event "Marienbad A2-GM 2024"]
[Site "Marianske Lazne"]
[Date "2024.01.19"]
[Round "8.6"]
[White "Morris, James"]
[Black "Plat, Vojtech"]
[Result "0-1"]
[ECO "C50"]
[WhiteElo "2416"]
[BlackElo "2516"]
[Annotator "TA"]
[PlyCount "146"]
[EventDate "2024.01.10"]
[EventType "tourn"]
[EventCountry "CZE"]
[SourceTitle "playchess.com"]
[Source "ChessBase"]
[SourceQuality "1"]
[TimeControl "40/5400+30:1800+30"]

{[%evp 11,146,10,19,16,15,12,23,0,-3,-3,12,18,25,20,28,19,75,5,14,17,27,23,26,16,21,10,29,13,27,10,73,73,80,68,81,56,66,57,81,81,74,66,141,97,91,93,103,96,163,210,236,264,233,158,148,81,83,68,80,0,0,0,0,0,0,0,0,0,0,0,49,14,75,76,220,233,255,245,266,245,260,227,235,243,197,254,245,249,241,96,235,236,458,435,432,405,381,381,367,364,330,253,229,223,196,189,560,553,500,0,0,0,0,0,0,0,0,0,0,0,0,-8,0,-910,-313,-368,-369,-348,-344,-320,-300,-29984,-29985,-29985,-29986,-29993,-29993]} 1. e4 {[%emt 0:00:03]} e5 {[%emt 0:00:06]} 2. Nf3 {[%emt 0:00:04]} Nc6 {[%emt 0:00:08]} 3. Bc4 {[%emt 0:00:55]} Be7 {[%emt 0:00:52]} 4. O-O {[%emt 0:00:24]} Nf6 {[%emt 0:00:05]} 5. d3 {[%emt 0:01:08]} O-O {[%emt 0:00:07]} 6. Nc3 {[%emt 0:01:31]} d6 {[%emt 0:00:05]} 7. a4 {[%emt 0:00:19] 7.a3 is a critical line. C55: Two Knights: 4 d3, 4 d4 exd4 5 e5 and Max Lange Attack.} Bg4 {[%emt 0:00:29]} 8. h3 {[%emt 0:00:03]} Bh5 {[%emt 0:00:14]} 9. Nd5 {[%emt 0:10:12] White has an edge.} Nxd5 {[%emt 0:02:45]} 10. Bxd5 {[%emt 0:00:04] [#]} Qc8 $146 {[%emt 0:02:42]} ({Predecessor:} 10... Nb4 11. Bb3 a5 12. Kh1 Na6 13. g4 Bg6 14. Be3 c6 15. Qe2 b6 16. Rg1 Nc5 {½-½ Bartnik,A (2083)-Bolda,G (2278) W-ch WS/M/854 email 2022}) 11. c3 {[%emt 0:01:19] Against Nd4} (11. g4 $5 Bg6 $8 12. a5 $14) 11... Nd8 {[%emt 0:00:15]} 12. d4 {[%emt 0:01:57]} c6 {[%emt 0:00:35]} 13. Bb3 {[%emt 0:01:10]} Ne6 {[%emt 0:02:19]} (13... Bf6 $11) 14. Be3 {[%emt 0:16:52]} (14. dxe5 $16 dxe5 15. Qe2) 14... Ng5 {[%emt 0:09:53]} 15. Bxg5 {[%emt 0:00:52]} Bxg5 {[%emt 0:00:05]} 16. Qd3 {[%emt 0:03:21]} Bf6 {[%emt 0:01:45]} 17. d5 {[%emt 0:02:57]} c5 {[%emt 0:00:17]} 18. Nd2 {[%emt 0:00:08]} Be7 {[%emt 0:03:50]} 19. Bd1 {[%emt 0:00:18]} Bxd1 {[%emt 0:01:00]} 20. Rfxd1 {[%emt 0:00:14]} f5 {[%emt 0:00:06] Black is weak on the light squares} (20... Bg5 $11 {remains equal.}) 21. exf5 $1 $16 {[%emt 0:04:51]} Rxf5 {[%emt 0:00:12]} 22. Ne4 {[%emt 0:00:08]} Rf4 {[%emt 0:01:37]} 23. g3 {[%emt 0:05:26]} Rf7 {[%emt 0:00:57]} 24. Kg2 {[%emt 0:00:03]} Qc7 {[%emt 0:02:32]} 25. a5 {[%emt 0:02:32]} Raf8 {[%emt 0:00:10]} 26. Qe2 {[%emt 0:01:09]} a6 {[%emt 0:04:08]} (26... Qd7 $14) 27. b4 {[%emt 0:02:47]} cxb4 {[%emt 0:00:46]} 28. cxb4 {[%emt 0:00:01]} Qd7 {[%emt 0:06:54]} 29. Rdb1 {[%emt 0:09:31]} Rf3 {[%emt 0:01:24]} 30. b5 $1 $18 {[%emt 0:00:10]} Qf5 {[%emt 0:00:41]} 31. bxa6 {[%emt 0:03:17]} bxa6 {[%emt 0:00:02]} 32. Ra4 {[%emt 0:01:06]} Qf7 {[%emt 0:03:22]} 33. Rd1 {[%emt 0:00:47]} (33. Rb7 $142) 33... Rb3 $16 {[%emt 0:01:22][%cal Ob3b2]} 34. Rc4 {[%emt 0:03:22]} Rb2 {[%emt 0:00:19][%mdl 64] Deflection} 35. Qg4 {[%emt 0:11:46]} (35. Qxb2 Qf3+ 36. Kh2 Qxd1 $11) (35. Rd2 $1 $16 {[%cal Rd2b2]} Rxd2 36. Qxd2) 35... Kh8 $36 {[%emt 0:02:38][%mdl 2048] Black has the initiative.} 36. Rc8 {[%emt 0:00:23] aiming for Rxf8+.} Bd8 {[%emt 0:00:12]} 37. Rc3 {[%emt 0:06:05]} Bxa5 {[%emt 0:08:30]} 38. Rf3 {[%emt 0:00:09]} (38. Rc8 {with more complications.} Bd8 39. Rc3 Rxf2+ 40. Nxf2 Qxf2+ 41. Kh1) 38... Qxf3+ {[%emt 0:00:06]} 39. Qxf3 {[%emt 0:00:01]} Rxf3 {[%emt 0:00:09]} 40. Kxf3 {[%emt 0:00:04][%mdl 4096] Endgame KRB-KRN} Bb4 {[%emt 0:00:18]} (40... Rb3+ $11 {was preferrable.} 41. Ke2 Rb2+ 42. Kf3 Rb3+ 43. Ke2 Rb6) 41. Rc1 {[%emt 0:30:04][%cal Rc1c8][%mdl 1024] White has compensation.} h6 {[%emt 0:30:19]} (41... Kg8 $11) 42. Kg4 $16 {[%emt 0:06:22]} Kh7 {[%emt 0:00:11]} (42... g6 $16) 43. h4 $1 $18 {[%emt 0:06:57]} Re2 {[%emt 0:11:51]} 44. f3 {[%emt 0:00:00]} Re3 {[%emt 0:00:00]} 45. Rc7 $1 {[%emt 0:00:00] Threatens to win with Nf6+.} Kg8 {[%emt 0:00:00]} 46. Kf5 {[%emt 0:00:00]} Rxf3+ {[%emt 0:00:00]} 47. Kg6 $1 {[%emt 0:00:00]} Kf8 {[%emt 0:00:00]} 48. Rxg7 {[%emt 0:00:00]} Re3 {[%emt 0:00:00]} 49. Rf7+ {[%emt 0:00:00]} Ke8 {[%emt 0:00:00]} 50. Nf6+ {[%emt 0:00:00]} Kd8 {[%emt 0:00:00]} 51. g4 {[%emt 0:00:00]} a5 $2 {[%emt 0:00:00]} (51... e4 {was worth a try.} 52. Rd7+ (52. Kxh6 Rh3 $14) 52... Kc8) 52. g5 {[%emt 0:00:00]} hxg5 {[%emt 0:00:00] [#]} 53. h5 {[%emt 0:00:00][%cal Oh5h6] Strongly threatening h6!} Rh3 {[%emt 0:00:00][%cal Og5g4]} 54. h6 {[%emt 0:00:00]} e4 {[%emt 0:00:00]} 55. Nxe4 {[%emt 0:00:00]} g4 {[%emt 0:00:00]} 56. Rf4 {[%emt 0:00:00]} (56. h7 g3 57. Ng5 (57. Rf8+ Kc7 $16) 57... Rh2 $18) 56... g3 {[%emt 0:00:00]} 57. Rg4 {[%emt 0:00:00] Black must now prevent Ng5.} Be1 {[%emt 0:00:00] [#]} 58. h7 $1 {[%emt 0:02:15] Ng5 would be deadly.} (58. Nxd6 $6 a4 $14) 58... a4 $2 {[%emt 0:00:00]} (58... Kd7 59. Nf6+ Kd8) 59. Ng5 {[%emt 0:00:35]} (59. Nxd6 a3 60. Nf7+ Kd7 61. Ne5+ Kd8 62. Nf7+ Kd7 63. Ne5+ Kd8 64. Nf7+ $11) 59... Rh1 {[%emt 0:00:00]} 60. Nf7+ $2 {[%emt 0:00:58]} ({Only move:} 60. Rxa4 $18 Bc3 61. Nf7+ Ke8 62. Ra8+ (62. Nxd6+ Kd7 $11) 62... Kd7 63. Ra7+ (63. h8=R $2 Bxh8 64. Ng5 g2 $19) (63. h8=Q $2 Rxh8 64. Ra7+ Kc8 $19) (63. h8=B $2 g2 $19) 63... Kc8 64. Ra3 (64. Nxd6+ Kb8 $11)) 60... Kd7 $11 {[%emt 0:00:00] And now ...a3 would win.} 61. Nh6 $1 {[%emt 0:00:58]} (61. h8=R $2 Rxh8 62. Nxh8 a3 $19) 61... Bc3 {[%emt 0:00:00]} 62. Rxg3 {[%emt 0:00:03]} Bb2 {[%emt 0:00:00]} 63. Ra3 {[%emt 0:01:53][%mdl 64] Deflection, Promotion} Rg1+ {[%emt 0:00:00]} 64. Kf5 {[%emt 0:00:50]} Ra1 {[%emt 0:00:00]} (64... Bxa3 $2 65. h8=Q (65. h8=R $2 {too greedy.} Rh1 $19) 65... Rf1+ 66. Kg6 Rg1+ 67. Kf5 Rf1+ 68. Ke4 $18) 65. Rh3 {[%emt 0:02:56]} ({Don't go for} 65. Rxa1 $2 Bxa1 66. Ng4 a3 $19) 65... a3 {[%emt 0:00:00]} 66. Rb3 {[%emt 0:00:07] White threatens Rb7+ and mate.} Kc7 {[%emt 0:02:36] Against Rb7+. ...Rf1+ is the strong threat.} 67. Kg4 $2 {[%emt 0:02:01][%mdl 8192]} (67. Nf7 $11) 67... Rh1 $2 {[%emt 0:03:33]} (67... a2 {( -> ...Rg1+)} 68. Ra3 Rg1+ 69. Kf3 Bxa3) 68. Rxb2 {[%emt 0:00:30]} axb2 {[%emt 0:00:06]} 69. h8=Q {[%emt 0:00:01][%cal Oh8b2] White wants to mate with Qxb2!} b1=Q $19 {[%emt 0:00:13] KQR-KQN} (69... b1=B $2 70. Qc3+ Kb8 71. Qb4+ Kc7 72. Nf7 $18) 70. Qc3+ {[%emt 0:00:29]} Kb8 {[%emt 0:00:05]} 71. Qh8+ $2 {[%emt 0:00:09]} (71. Kg5 $19) 71... Kb7 {[%emt 0:00:03] Black mates.} 72. Qg7+ {[%emt 0:01:16]} Ka6 {[%emt 0:00:05]} 73. Qf8 Qg1+ {[%emt 0:00:10] What a fight! A cool game by Plat.   Weighted Error Value: White=0.20 (precise) /Black=0.26 (precise)} 0-1

[Event "Marienbad A2-GM 2024"]
[Site "Marianske Lazne"]
[Date "2024.01.19"]
[Round "8.7"]
[White "Agdelen, Huseyin Can"]
[Black "Besou, Hussain"]
[Result "1/2-1/2"]
[ECO "B33"]
[WhiteElo "2409"]
[BlackElo "2277"]
[Annotator "RC"]
[PlyCount "108"]
[EventDate "2024.01.10"]
[EventType "tourn"]
[EventCountry "CZE"]
[SourceTitle "playchess.com"]
[Source "ChessBase"]
[SourceQuality "1"]
[TimeControl "40/5400+30:1800+30"]

1. e4 {[%emt 0:06:20]} c5 {[%emt 0:00:07]} 2. Nf3 {[%emt 0:00:25]} Nc6 {[%emt 0:00:06]} 3. d4 {[%emt 0:00:28]} cxd4 {[%emt 0:00:07]} 4. Nxd4 {[%emt 0:00:04]} Nf6 {[%emt 0:00:08]} 5. Nc3 {[%emt 0:00:03]} e5 {[%emt 0:00:08]} 6. Ndb5 {[%emt 0:02:42]} d6 {[%emt 0:00:10]} 7. Bg5 {[%emt 0:02:01]} a6 {[%emt 0:00:08]} 8. Na3 {[%emt 0:00:02]} b5 {[%emt 0:00:06]} 9. Nab1 {[%emt 0:01:42]} Be7 {[%emt 0:04:01]} 10. Bxf6 {[%emt 0:06:34]} Bxf6 {[%emt 0:01:28]} 11. a4 {[%emt 0:00:12]} b4 {[%emt 0:00:31]} 12. Nd5 {[%emt 0:00:04]} Bg5 {[%emt 0:05:04]} 13. Bc4 {[%emt 0:04:24]} O-O {[%emt 0:01:19]} 14. O-O {[%emt 0:02:23]} Be6 {[%emt 0:07:08]} 15. Qd3 {[%emt 0:03:49]} a5 {[%emt 0:01:07]} 16. c3 {[%emt 0:02:08]} Rb8 {[%emt 0:14:55]} 17. Bb5 {[%emt 0:03:42]} Bxd5 {[%emt 0:05:53]} 18. Qxd5 {[%emt 0:04:58]} Ne7 {[%emt 0:01:44]} 19. Qb3 {[%emt 0:00:13]} d5 {[%emt 0:09:37]} 20. Rd1 {[%emt 0:02:13]} bxc3 {[%emt 0:01:36]} 21. bxc3 {[%emt 0:03:11]} d4 {[%emt 0:00:50]} 22. g3 {[%emt 0:08:44]} Ng6 {[%emt 0:11:42]} 23. cxd4 exd4 {[%emt 0:00:12]} 24. Nc3 {[%emt 0:06:31]} Be7 {[%emt 0:08:21]} 25. Nd5 {[%emt 0:15:51]} Bc5 {[%emt 0:00:13]} 26. Rac1 {[%emt 0:00:56]} Qd6 {[%emt 0:01:36]} 27. Rc2 {[%emt 0:03:52]} Ne5 {[%emt 0:05:44]} 28. Kg2 {[%emt 0:01:54]} d3 {[%emt 0:11:26]} 29. Rcd2 {[%emt 0:05:52]} Qg6 {[%emt 0:02:08]} 30. Re1 {[%emt 0:00:28]} Qh6 {[%emt 0:05:42]} 31. f4 {[%emt 0:05:24]} Ng4 {[%emt 0:00:59]} 32. h3 {[%emt 0:00:07]} Nf6 {[%emt 0:00:06]} 33. Rxd3 {[%emt 0:02:16]} Nxd5 {[%emt 0:00:13]} 34. Rxd5 {[%emt 0:00:05]} Bb4 {[%emt 0:00:07]} 35. Rc1 {[%emt 0:02:04]} Qe6 {[%emt 0:00:39]} 36. Qd3 {[%emt 0:00:25]} g6 {[%emt 0:00:19]} 37. Rc6 {[%emt 0:00:26]} Qe7 {[%emt 0:00:06]} 38. Rd7 {[%emt 0:00:59]} Rbd8 {[%emt 0:00:05]} 39. Rxe7 {[%emt 0:01:43]} Rxd3 {[%emt 0:00:05]} 40. Bxd3 {[%emt 0:00:04]} Bxe7 {[%emt 0:00:05]} 41. Rc7 {[%emt 0:30:06]} Rd8 {[%emt 0:31:31]} 42. Bb5 {[%emt 0:00:00]} Kf8 {[%emt 0:00:00]} 43. Ra7 {[%emt 0:00:00]} Rd2+ {[%emt 0:00:00]} 44. Kf1 {[%emt 0:00:00]} Rf2+ {[%emt 0:00:00]} 45. Ke1 {[%emt 0:00:00]} Bb4+ {[%emt 0:00:00]} 46. Kd1 {[%emt 0:00:00]} Rd2+ {[%emt 0:00:00]} 47. Kc1 {[%emt 0:00:00]} Rg2 {[%emt 0:00:00]} 48. Bc4 {[%emt 0:00:00]} Rxg3 {[%emt 0:00:00]} 49. Rxf7+ {[%emt 0:05:15]} Ke8 {[%emt 0:00:00]} 50. Bd5 {[%emt 0:01:15]} Rxh3 {[%emt 0:00:00]} 51. e5 {[%emt 0:01:08]} Rc3+ {[%emt 0:00:00]} 52. Kb2 {[%emt 0:00:14]} Rd3 {[%emt 0:00:00]} 53. Be6 {[%emt 0:00:11]} Rd4 {[%emt 0:00:00]} 54. Rxh7 {[%emt 0:03:02]} Rxf4 {[%emt 0:00:00]} 1/2-1/2

[Event "Marienbad A2-GM 2024"]
[Site "Marianske Lazne"]
[Date "2024.01.19"]
[Round "8.8"]
[White "Rasik, Vitezslav"]
[Black "Can, Isik"]
[Result "1/2-1/2"]
[ECO "B11"]
[WhiteElo "2406"]
[BlackElo "2500"]
[Annotator "TA"]
[PlyCount "38"]
[EventDate "2024.01.10"]
[EventType "tourn"]
[EventCountry "CZE"]
[SourceTitle "playchess.com"]
[Source "ChessBase"]
[SourceQuality "1"]
[TimeControl "40/5400+30:1800+30"]

{[%evp 10,38,27,5,19,21,29,0,-9,0,0,-25,0,0,0,0,0,0,40,0,2,0,0,0,25,22,14,14,33,22,20]} 1. e4 {[%emt 0:00:04]} c6 {[%emt 0:00:04]} 2. Nc3 {[%emt 0:00:30]} d5 {[%emt 0:00:04]} 3. Nf3 {[%emt 0:00:14]} Bg4 {[%emt 0:00:06]} 4. h3 {[%emt 0:00:34]} Bxf3 {[%emt 0:00:06]} 5. Qxf3 {[%emt 0:00:25]} e6 {[%emt 0:00:02]} 6. Be2 {[%emt 0:02:13]} Bc5 {[%emt 0:00:54] B11: Caro-Kann: Two Knights Variation.} 7. O-O {[%emt 0:01:38]} Ne7 {[%emt 0:00:35][%cal Bg8e7,Be7g6,Bg6e5,Be5d3,Bd3c1][%mdl 32] [#]} 8. Re1 $146 {[%emt 0:03:35]} (8. Na4 $5 {[%cal Ra4c5]} Bd6 9. d4 $11) ({Predecessor:} 8. Rd1 Bd4 9. exd5 cxd5 10. Nb5 Nbc6 11. c3 Bf6 12. d4 a6 13. Na3 O-O 14. Bd3 {1-0 Saric,I (2657)-Anand,V (2754) Zagreb SuperUnited Blitz 2023 (9)}) 8... Nd7 {[%emt 0:11:34]} 9. Bf1 {[%emt 0:03:01]} d4 {[%emt 0:03:46]} 10. Nb1 {[%emt 0:02:43][%cal Bc3b1,Bb1d2,Bd2b3,Bb3d4][%mdl 32]} g5 {[%emt 0:03:17]} 11. d3 {[%emt 0:05:23]} Ng6 12. Qh5 {[%emt 0:04:01]} h6 {[%emt 0:04:52]} 13. Nd2 {[%emt 0:02:07]} Nge5 {[%emt 0:15:55]} 14. a3 {[%emt 0:06:19]} a5 {[%emt 0:02:34]} 15. Nb3 {[%emt 0:11:41]} Bb6 {[%emt 0:06:18]} 16. c3 {[%emt 0:02:50]} Nc5 {[%emt 0:01:03] A dynamic duo of knights.} 17. Nxd4 {[%emt 0:16:02] Black must now prevent Be3.} Ncxd3 {[%emt 0:08:13]} 18. Bxd3 {[%emt 0:03:41]} Nxd3 {[%emt 0:00:10]} 19. Rd1 {[%emt 0:01:26]} Nxc1 {[%emt 0:06:56] An uneventful encounter.   Weighted Error Value: White=0.08 (flawless) /Black=0.09 (flawless)} 1/2-1/2

[Event "Marienbad A2-GM 2024"]
[Site "Marianske Lazne"]
[Date "2024.01.19"]
[Round "8.9"]
[White "Lalic, Bogdan"]
[Black "Braeuer, Franz"]
[Result "1/2-1/2"]
[ECO "D55"]
[WhiteElo "2349"]
[BlackElo "2428"]
[Annotator "RC"]
[PlyCount "27"]
[EventDate "2024.01.10"]
[EventType "tourn"]
[EventCountry "CZE"]
[SourceTitle "playchess.com"]
[Source "ChessBase"]
[SourceQuality "1"]
[TimeControl "40/5400+30:1800+30"]

1. d4 {[%emt 0:06:45]} Nf6 {[%emt 0:00:05]} 2. c4 {[%emt 0:00:09]} e6 {[%emt 0:00:04]} 3. Nf3 {[%emt 0:00:09]} d5 {[%emt 0:00:05]} 4. Bg5 {[%emt 0:00:30]} Be7 {[%emt 0:01:14]} 5. Nc3 {[%emt 0:00:26]} h6 {[%emt 0:00:14]} 6. Bxf6 {[%emt 0:00:16]} Bxf6 {[%emt 0:00:04]} 7. e3 {[%emt 0:00:14]} O-O {[%emt 0:01:04]} 8. Rc1 {[%emt 0:00:11]} c6 {[%emt 0:00:26]} 9. Bd3 {[%emt 0:00:12]} Nd7 {[%emt 0:00:34]} 10. O-O {[%emt 0:00:11]} dxc4 {[%emt 0:14:19]} 11. Bxc4 {[%emt 0:00:09]} c5 {[%emt 0:01:18]} 12. Ne4 {[%emt 0:01:33]} cxd4 {[%emt 0:00:26]} 13. Nxf6+ {[%emt 0:00:10]} Nxf6 {[%emt 0:00:15]} 14. Qxd4 {[%emt 0:00:08]} 1/2-1/2

[Event "Marienbad A2-GM 2024"]
[Site "Marianske Lazne"]
[Date "2024.01.19"]
[Round "8.10"]
[White "Raczek, Krzysztof"]
[Black "Nguyen, Alex Dac-Vuong"]
[Result "1/2-1/2"]
[ECO "A33"]
[WhiteElo "2347"]
[BlackElo "2347"]
[Annotator "RC"]
[PlyCount "120"]
[EventDate "2024.01.10"]
[EventType "tourn"]
[EventCountry "CZE"]
[SourceTitle "playchess.com"]
[Source "ChessBase"]
[SourceQuality "1"]
[TimeControl "40/5400+30:1800+30"]

1. c4 {[%emt 0:00:05]} c5 {[%emt 0:00:17]} 2. Nc3 {[%emt 0:00:07]} Nf6 {[%emt 0:00:08]} 3. Nf3 {[%emt 0:00:12]} Nc6 {[%emt 0:00:05]} 4. d4 {[%emt 0:00:07]} cxd4 {[%emt 0:00:05]} 5. Nxd4 {[%emt 0:00:05]} e6 {[%emt 0:00:04]} 6. Bf4 {[%emt 0:00:06]} d5 {[%emt 0:02:07]} 7. Nxc6 {[%emt 0:00:20]} bxc6 {[%emt 0:00:05]} 8. cxd5 {[%emt 0:00:05]} exd5 {[%emt 0:09:11]} 9. e3 {[%emt 0:00:53]} Be7 {[%emt 0:02:06]} 10. Bd3 {[%emt 0:01:41]} O-O {[%emt 0:00:57]} 11. O-O {[%emt 0:00:04]} Be6 {[%emt 0:04:06]} 12. Rc1 {[%emt 0:01:15]} c5 {[%emt 0:05:59]} 13. Qa4 {[%emt 0:20:48]} Qb6 {[%emt 0:11:36]} 14. Be5 {[%emt 0:09:32]} Rfd8 {[%emt 0:07:51]} 15. Qh4 {[%emt 0:06:16]} h6 {[%emt 0:04:47]} 16. Na4 {[%emt 0:02:42]} Qa5 {[%emt 0:03:01]} 17. Bc3 {[%emt 0:01:44]} Qc7 {[%emt 0:00:13]} 18. Nxc5 {[%emt 0:03:24]} Qxc5 {[%emt 0:02:10]} 19. Bxf6 {[%emt 0:00:11]} Bxf6 {[%emt 0:00:08]} 20. Qxf6 {[%emt 0:00:05]} Qxc1 {[%emt 0:03:15]} 21. Qxd8+ {[%emt 0:00:09]} Rxd8 {[%emt 0:00:03]} 22. Rxc1 {[%emt 0:00:07]} d4 {[%emt 0:00:04]} 23. e4 {[%emt 0:06:52]} Bxa2 {[%emt 0:00:18]} 24. Ra1 {[%emt 0:03:29]} Be6 {[%emt 0:00:28]} 25. Rxa7 {[%emt 0:00:54]} Rb8 {[%emt 0:00:04]} 26. Ra4 {[%emt 0:00:53]} Rxb2 {[%emt 0:00:11]} 27. Rxd4 {[%emt 0:00:27]} g5 {[%emt 0:00:12]} 28. Kf1 {[%emt 0:01:13]} Kg7 {[%emt 0:02:46]} 29. Be2 {[%emt 0:04:49]} Kf6 {[%emt 0:04:06]} 30. f3 {[%emt 0:02:04]} Ke5 {[%emt 0:01:54]} 31. Ra4 {[%emt 0:00:30]} h5 {[%emt 0:13:21]} 32. Kf2 {[%emt 0:03:07]} h4 {[%emt 0:00:04]} 33. Ke3 {[%emt 0:03:45]} Rb3+ {[%emt 0:02:33]} 34. Bd3 {[%emt 0:00:50]} Rb2 {[%emt 0:00:06]} 35. Ra5+ {[%emt 0:00:49]} Kf6 {[%emt 0:00:14]} 36. Be2 {[%emt 0:00:50]} Rb3+ {[%emt 0:00:06]} 37. Kf2 {[%emt 0:00:18]} Rb2 {[%emt 0:00:51]} 38. Rc5 {[%emt 0:00:52]} Rb1 {[%emt 0:02:21]} 39. Bd3 {[%emt 0:13:46]} Rb2+ {[%emt 0:05:32]} 40. Rc2 {[%emt 0:00:53]} Rxc2+ {[%emt 0:00:05]} 41. Bxc2 {[%emt 0:30:05]} Ke5 {[%emt 0:30:08]} 42. Ke3 {[%emt 0:01:54]} f6 {[%emt 0:00:10]} 43. g3 {[%emt 0:01:50]} hxg3 {[%emt 0:00:04]} 44. hxg3 {[%emt 0:00:04]} Bc4 {[%emt 0:00:36]} 45. f4+ {[%emt 0:00:58]} gxf4+ {[%emt 0:00:05]} 46. gxf4+ {[%emt 0:00:03]} Ke6 {[%emt 0:00:39]} 47. Kf3 {[%emt 0:00:19]} Kf7 {[%emt 0:00:43]} 48. Kg4 {[%emt 0:00:49]} Kg6 {[%emt 0:00:33]} 49. Kg3 {[%emt 0:00:43]} Kg7 {[%emt 0:00:27]} 50. Bd1 {[%emt 0:00:13]} Bf7 {[%emt 0:00:27]} 51. Bg4 {[%emt 0:01:02]} Bg6 {[%emt 0:00:30]} 52. Kf3 {[%emt 0:00:30]} Kf8 {[%emt 0:00:07]} 53. Bc8 {[%emt 0:01:15]} Bh5+ {[%emt 0:00:10]} 54. Kg3 {[%emt 0:00:47]} Kg7 {[%emt 0:00:09]} 55. Bb7 {[%emt 0:00:56]} Bd1 {[%emt 0:00:13]} 56. Bd5 {[%emt 0:00:18]} Bh5 {[%emt 0:00:20]} 57. Bb3 {[%emt 0:00:52]} Be2 {[%emt 0:00:13]} 58. Kf2 {[%emt 0:00:09]} Bg4 {[%emt 0:00:06]} 59. Ke3 {[%emt 0:02:21]} Kf8 {[%emt 0:00:08]} 60. Kd4 {[%emt 0:00:43]} Ke7 {[%emt 0:00:06]} 1/2-1/2